bitfinex/quotes_BTCUSD_20250330
["timestamp","ask_amount","ask_price","bid_price","bid_amount"]
[1743342666470,0.429817,82972.0,82971.0,0.00442824]
[1743342666853,0.428817,82972.0,82971.0,0.00442824]
[1743342670028,0.45132891,82972.0,82971.0,0.00442824]
[1743342670477,0.45132891,82972.0,82954.0,0.6301688]
[1743342670478,0.93473358,82949.0,82584.0,60.0]
[1743342670625,0.93473358,82949.0,82948.0,0.25892568]
[1743342670843,0.93473358,82949.0,82948.0,0.53665984]
[1743342671649,0.93673358,82949.0,82948.0,0.53665984]
[1743342672273,0.95462341,82949.0,82948.0,0.53665984]
[1743342672604,1.19673541,82949.0,82948.0,0.28349084]
[1743342672824,1.20879041,82949.0,82948.0,0.1577756]
[1743342673159,1.20779041,82949.0,82948.0,0.13321044]
[1743342673592,1.20879041,82949.0,82948.0,0.13321044]
[1743342673770,1.20879041,82949.0,82948.0,0.00911044]
[1743342673969,1.23130133,82949.0,82945.0,0.0001686]
[1743342674598,0.97813433,82949.0,82945.0,0.0122246]
[1743342674778,0.02251092,82948.0,82946.0,0.253176]
[1743342675607,0.02251092,82948.0,82947.0,0.13233983]
[1743342675854,0.95462341,82949.0,82948.0,0.253169]
[1743342676010,0.95462341,82949.0,82948.0,0.38799468]
[1743342676353,0.93573358,82949.0,82948.0,0.38799468]
[1743342676909,0.93473358,82949.0,82948.0,0.77109468]
[1743342677114,0.93473358,82949.0,82948.0,0.93887951]
[1743342677314,0.93473358,82949.0,82948.0,0.93687951]
[1743342677974,0.93573358,82949.0,82948.0,0.93687951]
[1743342678345,0.93573358,82949.0,82948.0,0.81659468]
[1743342679006,0.93673358,82949.0,82948.0,0.81659468]
[1743342679570,0.93673358,82949.0,82948.0,1.22869468]
[1743342680805,0.95562254,82949.0,82948.0,1.22869468]
[1743342681389,0.95562254,82949.0,82948.0,0.97752568]
[1743342681625,0.95562254,82949.0,82948.0,0.97503983]
[1743342683942,0.97813506,82949.0,82948.0,0.97503983]
[1743342685361,0.97813506,82949.0,82948.0,0.56293983]
[1743342686384,0.9592461,82949.0,82948.0,0.56293983]
[1743342686696,0.93673358,82949.0,82948.0,0.56293983]
[1743342688251,0.93673358,82949.0,82945.0,0.02101383]
[1743342688846,0.93673358,82949.0,82946.0,0.3]
[1743342689054,0.93673358,82949.0,82947.0,0.253172]
[1743342689256,0.93673358,82949.0,82948.0,0.012055]
[1743342689415,0.93673358,82949.0,82948.0,0.13233983]
[1743342690478,0.93473358,82949.0,82948.0,0.22878068]
[1743342690758,0.93573358,82949.0,82948.0,0.22878068]
[1743342691018,0.95562452,82949.0,82948.0,0.22878068]
[1743342691272,0.95362452,82949.0,82948.0,0.22878068]
[1743342691736,0.95462452,82949.0,82948.0,0.23378068]
[1743342691968,0.95562452,82949.0,82948.0,0.23878068]
[1743342692899,0.95596192,82949.0,82948.0,0.23878068]
[1743342693145,0.95596192,82949.0,82948.0,0.22672568]
[1743342694920,0.97848037,82949.0,82948.0,0.22672568]
[1743342695259,0.97848037,82949.0,82948.0,0.46783968]
[1743342695462,0.97848037,82949.0,82948.0,0.47989468]
[1743342695915,0.97848037,82949.0,82948.0,0.82769468]
[1743342696112,0.95958943,82949.0,82948.0,0.82769468]
[1743342696454,0.93707098,82949.0,82948.0,0.82769468]
[1743342700142,0.93707098,82949.0,82948.0,1.23979468]
[1743342700577,0.95596023,82949.0,82948.0,1.23979468]
[1743342705375,0.95596023,82949.0,82948.0,1.23996338]
[1743342706447,0.93707098,82949.0,82948.0,1.23996338]
[1743342709630,0.95595951,82949.0,82948.0,1.23996338]
[1743342711089,0.95395951,82949.0,82948.0,1.22996338]
[1743342711489,0.95395951,82949.0,82948.0,1.23496338]
[1743342711490,0.95495951,82949.0,82948.0,1.23496338]
[1743342712582,0.95495951,82949.0,82948.0,1.24096338]
[1743342716009,1.05045546,82949.0,82948.0,0.84355353]
[1743342716220,1.26493798,82949.0,82948.0,0.0111687]
[1743342716426,1.31333798,82949.0,82948.0,0.0111687]
[1743342716863,1.3358457,82949.0,82948.0,0.0111687]
[1743342717284,1.3348457,82949.0,82948.0,0.0001687]
[1743342717696,1.3348457,82949.0,82948.0,0.0101687]
[1743342718118,0.012055,82947.0,82946.0,0.0001687]
[1743342718328,0.13916962,82947.0,82946.0,0.0001687]
[1743342718554,0.136155,82947.0,82946.0,0.0001687]
[1743342719164,0.14740592,82947.0,82946.0,0.0001687]
[1743342719376,0.14740592,82947.0,82946.0,0.0061687]
[1743342719575,0.16634628,82947.0,82946.0,0.0061687]
[1743342719782,0.16634628,82947.0,82946.0,0.0001687]
[1743342720201,0.16634628,82947.0,82946.0,0.0031687]
[1743342720404,0.22485799,82947.0,82946.0,0.0031687]
[1743342720837,0.22485799,82947.0,82946.0,0.0051687]
[1743342721283,0.22485799,82947.0,82946.0,0.0001687]
[1743342721488,0.22485799,82947.0,82946.0,0.0021687]
[1743342722344,0.22485799,82947.0,82946.0,0.0031687]
[1743342722546,0.22787265,82947.0,82946.0,0.0031687]
[1743342723186,0.22485799,82947.0,82946.0,0.0031687]
[1743342723635,0.22485799,82947.0,82914.0,0.574]
[1743342723636,0.377312,82934.0,82914.0,0.574]
[1743342723832,0.377312,82934.0,82916.0,0.02371818]
[1743342724282,0.377312,82934.0,82912.0,0.0001687]
[1743342724283,0.377312,82934.0,82914.0,0.0120163]
[1743342724498,0.40745928,82934.0,82912.0,0.0001687]
[1743342724700,0.47595707,82934.0,82912.0,0.0001687]
[1743342724917,0.47595707,82934.0,82912.0,0.02460964]
[1743342725058,0.53446878,82934.0,82933.0,0.0041686]
[1743342725276,0.53446878,82934.0,82933.0,0.0001686]
[1743342725701,0.53446878,82934.0,82933.0,0.0061686]
[1743342726257,0.53446878,82934.0,82933.0,0.0021686]
[1743342726462,0.51557242,82934.0,82933.0,0.0041686]
[1743342726707,0.44707463,82934.0,82933.0,0.0041686]
[1743342727114,0.08181963,82934.0,82933.0,0.0001686]
[1743342727756,0.09972866,82934.0,82933.0,0.0001686]
[1743342729204,0.08181963,82934.0,82933.0,0.0001686]
[1743342729607,0.04581564,82934.0,82933.0,0.0001686]
[1743342730020,0.10890986,82934.0,82933.0,0.0001686]
[1743342730830,0.12780566,82934.0,82933.0,0.0001686]
[1743342731207,0.28988566,82934.0,82933.0,0.0001686]
[1743342733910,0.53104066,82934.0,82933.0,0.0001686]
[1743342734106,0.60654066,82934.0,82933.0,0.0001686]
[1743342734308,0.65634066,82934.0,82933.0,0.0001686]
[1743342734711,0.99166385,82934.0,82933.0,6e-07]
[1743342734921,1.02744851,82934.0,82933.0,6e-07]
[1743342735329,1.03244851,82934.0,82933.0,6e-07]
[1743342736411,1.01655271,82934.0,82933.0,6e-07]
[1743342737289,0.01206,82912.0,82911.0,7e-07]
[1743342737450,0.33773942,82912.0,82911.0,7e-07]
[1743342737649,0.2994,82912.0,82911.0,7e-07]
[1743342738304,0.33472319,82912.0,82911.0,7e-07]
[1743342738677,0.012061,82909.0,82883.0,7.249e-05]
[1743342738903,0.07515522,82909.0,82883.0,7.249e-05]
[1743342739292,0.14469852,82909.0,82883.0,7.249e-05]
[1743342739522,0.21149771,82909.0,82883.0,7.249e-05]
[1743342739769,0.64481403,82909.0,82908.0,8e-07]
[1743342739981,0.80383771,82909.0,82908.0,8e-07]
[1743342741189,0.79983771,82909.0,82908.0,8e-07]
[1743342741402,0.79883771,82909.0,82908.0,8e-07]
[1743342741605,0.27570349,82909.0,82908.0,8e-07]
[1743342741809,0.4024203,82909.0,82908.0,8e-07]
[1743342742008,0.4034203,82909.0,82908.0,8e-07]
[1743342742440,0.42027481,82909.0,82908.0,8e-07]
[1743342742848,0.42227481,82909.0,82908.0,8e-07]
[1743342743792,0.26023481,82909.0,82908.0,8e-07]
[1743342744030,0.42227481,82909.0,82908.0,8e-07]
[1743342744231,0.4044203,82909.0,82908.0,8e-07]
[1743342744632,0.2791203,82909.0,82908.0,8e-07]
[1743342744835,0.2665483,82909.0,82908.0,8e-07]
[1743342745663,0.1045083,82909.0,82908.0,8e-07]
[1743342745862,0.2665483,82909.0,82908.0,8e-07]
[1743342746497,0.2476443,82909.0,82908.0,8e-07]
[1743342746841,0.18935192,82909.0,82908.0,8e-07]
[1743342747049,0.25052181,82909.0,82908.0,8e-07]
[1743342747248,0.24750602,82909.0,82908.0,8e-07]
[1743342747606,0.24550602,82909.0,82908.0,8e-07]
[1743342748176,0.32820602,82909.0,82908.0,8e-07]
[1743342748384,0.32620602,82909.0,82908.0,8e-07]
[1743342749630,0.34610972,82909.0,82908.0,8e-07]
[1743342751020,0.34710972,82909.0,82908.0,8e-07]
[1743342751223,0.34606972,82909.0,82908.0,8e-07]
[1743342751663,0.34706972,82909.0,82908.0,8e-07]
[1743342753027,0.10236972,82909.0,82908.0,8e-07]
[1743342753231,0.26432972,82909.0,82908.0,8e-07]
[1743342754442,0.22854258,82909.0,82908.0,8e-07]
[1743342755090,0.23155833,82909.0,82908.0,8e-07]
[1743342755500,0.22854258,82909.0,82908.0,8e-07]
[1743342755846,0.46977058,82909.0,82908.0,8e-07]
[1743342756529,0.45086688,82909.0,82908.0,8e-07]
[1743342757327,0.48669365,82909.0,82908.0,8e-07]
[1743342757945,0.56939365,82909.0,82908.0,8e-07]
[1743342758146,0.48669365,82909.0,82908.0,8e-07]
[1743342759469,0.5055972,82909.0,82908.0,8e-07]
[1743342759912,0.5418692,82909.0,82908.0,8e-07]
[1743342763519,1.5418692,82909.0,82908.0,8e-07]
[1743342764051,1.5422066,82909.0,82908.0,8e-07]
[1743342764277,1.5422066,82909.0,82888.0,0.0011685]
[1743342764278,0.25335,82889.0,82888.0,0.0011685]
[1743342764487,0.41523,82889.0,82888.0,0.0011685]
[1743342764663,0.44444963,82889.0,82888.0,0.0011685]
[1743342765096,0.46335565,82889.0,82888.0,0.0011685]
[1743342765701,0.52154938,82889.0,82888.0,0.0011685]
[1743342766090,0.35966938,82889.0,82888.0,0.0011685]
[1743342766226,0.52154938,82889.0,82888.0,0.0011685]
[1743342767074,0.50264336,82889.0,82888.0,0.0011685]
[1743342768056,0.46681659,82889.0,82888.0,0.0011685]
[1743342768904,0.46677659,82889.0,82888.0,0.0011685]
[1743342770044,0.48568256,82889.0,82888.0,0.0011685]
[1743342770563,0.46771385,82889.0,82888.0,0.0011685]
[1743342771712,0.30587385,82889.0,82888.0,0.0011685]
[1743342771931,0.05252385,82889.0,82866.0,0.16184]
[1743342772187,0.05252385,82889.0,82888.0,0.012064]
[1743342772702,0.05252385,82889.0,82886.0,0.241292]
[1743342772943,0.05252385,82889.0,82887.0,0.02427703]
[1743342773423,0.01125092,82888.0,82887.0,0.02427703]
[1743342774683,0.01125092,82888.0,82887.0,0.03634103]
[1743342774941,0.01890597,82889.0,82888.0,0.129]
[1743342775184,0.01890597,82889.0,82888.0,0.24928483]
[1743342776570,0.253337,82893.0,82888.0,0.24928483]
[1743342776753,0.012063,82893.0,82888.0,0.24928483]
[1743342777706,0.01123939,82892.0,82888.0,0.24928483]
[1743342778589,0.01123939,82892.0,82888.0,0.26134883]
[1743342778794,0.01123939,82892.0,82891.0,0.012064]
[1743342778999,0.253313,82902.0,82891.0,0.012064]
[1743342779000,0.241254,82900.0,82891.0,0.012064]
[1743342779200,0.005,82902.0,82894.0,0.012063]
[1743342779394,1.2415674,82909.0,82905.0,0.012061]
[1743342779395,1.0003374,82909.0,82905.0,0.012061]
[1743342779605,1.0003374,82909.0,82902.0,0.0485]
[1743342779606,1.0003374,82909.0,82906.0,0.0805]
[1743342780029,1.0003374,82909.0,82899.0,0.02660285]
[1743342780030,0.253295,82907.0,82899.0,0.02660285]
[1743342780175,0.01923701,82908.0,82900.0,0.13234683]
[1743342780378,0.01923701,82908.0,82902.0,0.012062]
[1743342780583,0.01923701,82908.0,82900.0,0.13234683]
[1743342781159,0.01923701,82908.0,82900.0,0.14456317]
[1743342781561,0.01923701,82908.0,82900.0,0.38581717]
[1743342781756,0.01923701,82908.0,82902.0,0.241248]
[1743342782423,0.01923701,82908.0,82901.0,0.012062]
[1743342782626,0.01923701,82908.0,82900.0,0.38681717]
[1743342782840,0.01923701,82908.0,82900.0,0.38781717]
[1743342783125,0.01923701,82908.0,82907.0,0.02372997]
[1743342783967,0.26046801,82908.0,82907.0,0.02372997]
[1743342784418,0.01923701,82908.0,82907.0,0.02472997]
[1743342785011,0.01923701,82908.0,82907.0,0.27802497]
[1743342785219,0.01923701,82908.0,82907.0,0.3983098]
[1743342785392,0.000337,82908.0,82907.0,0.1450148]
[1743342785609,0.253629,82908.0,82907.0,0.02472997]
[1743342785955,0.258629,82908.0,82907.0,0.001]
[1743342786291,0.012062,82900.0,82890.0,0.012064]
[1743342786485,0.012062,82900.0,82890.0,0.13234883]
[1743342786692,0.012063,82897.0,82890.0,0.12028483]
[1743342786896,0.012062,82900.0,82896.0,0.02372601]
[1743342787327,0.253311,82902.0,82896.0,0.02372601]
[1743342787530,0.001,82900.0,82896.0,0.02372601]
[1743342788101,0.253307,82903.0,82896.0,0.02372601]
[1743342788505,0.253307,82903.0,82896.0,0.02472601]
[1743342788712,0.253307,82903.0,82896.0,0.02372601]
[1743342789282,0.253307,82903.0,82896.0,0.02472601]
[1743342789503,0.253307,82903.0,82896.0,0.02372601]
[1743342789731,0.001,82900.0,82896.0,0.02672601]
[1743342790121,0.012062,82904.0,82896.0,0.02372601]
[1743342790349,0.253307,82903.0,82896.0,0.02372601]
[1743342790556,0.253297,82907.0,82897.0,0.012063]
[1743342790765,0.241239,82905.0,82896.0,0.28105401]
[1743342790967,0.241239,82905.0,82896.0,0.03678901]
[1743342791178,0.241245,82903.0,82896.0,0.02372601]
[1743342791384,0.012062,82901.0,82896.0,0.02672601]
[1743342791590,0.012062,82901.0,82896.0,0.02772601]
[1743342791805,0.012063,82897.0,82896.0,0.02672601]
[1743342792006,0.012063,82897.0,82896.0,0.02772601]
[1743342792429,0.012063,82897.0,82896.0,0.003]
[1743342792641,0.253329,82896.0,82895.0,0.0001685]
[1743342793465,0.017063,82897.0,82895.0,0.0001685]
[1743342793623,0.017063,82897.0,82896.0,0.003]
[1743342793802,0.012062,82900.0,82896.0,0.003]
[1743342794008,0.01890114,82902.0,82896.0,0.003]
[1743342794271,0.001,82897.0,82896.0,0.001]
[1743342794599,0.241254,82900.0,82895.0,0.0031685]
[1743342794799,0.241254,82900.0,82896.0,0.001]
[1743342795462,0.012062,82901.0,82896.0,0.001]
[1743342795694,0.253316,82900.0,82896.0,0.001]
[1743342795917,0.241266,82896.0,82895.0,0.0001685]
[1743342796129,0.253329,82896.0,82895.0,0.0001685]
[1743342797733,0.253329,82896.0,82895.0,0.0011685]
[1743342799707,0.253329,82896.0,82895.0,0.0041685]
[1743342802861,0.017063,82897.0,82895.0,0.0041685]
[1743342803067,0.01890114,82902.0,82899.0,0.012062]
[1743342803290,0.01890114,82902.0,82901.0,0.253313]
[1743342803513,0.01890114,82902.0,82901.0,0.68813868]
[1743342803718,0.01890114,82902.0,82901.0,0.77023868]
[1743342803930,0.0003374,82909.0,82907.0,0.253295]
[1743342804143,0.0003374,82909.0,82907.0,0.43196421]
[1743342804349,0.0003374,82909.0,82907.0,0.37357983]
[1743342805442,0.0003374,82909.0,82907.0,1.10122068]
[1743342805786,0.0003374,82909.0,82907.0,1.12536101]
[1743342805984,0.0003374,82909.0,82907.0,1.13459227]
[1743342806200,0.0003374,82909.0,82907.0,1.3841771]
[1743342806602,0.0003374,82909.0,82907.0,1.3871771]
[1743342807021,0.0003374,82909.0,82907.0,1.42581719]
[1743342807222,4e-07,82909.0,82908.0,0.55500185]
[1743342807453,0.0003374,82934.0,82933.0,0.02659785]
[1743342807652,0.0003374,82934.0,82933.0,0.68804068]
[1743342807858,0.0003374,82934.0,82933.0,0.80832551]
[1743342808672,0.0003374,82934.0,82933.0,1.22051658]
[1743342808880,0.0003374,82934.0,82933.0,1.24443097]
[1743342809486,0.0003374,82934.0,82933.0,0.12028483]
[1743342809713,0.0003374,82934.0,82933.0,0.37349983]
[1743342809957,0.0003374,82934.0,82933.0,0.79059983]
[1743342810165,0.0003374,82934.0,82933.0,0.88452116]
[1743342810365,0.0003374,82934.0,82933.0,0.88752116]
[1743342810797,0.0013374,82934.0,82933.0,0.82059158]
[1743342811469,0.0013374,82934.0,82933.0,1.13513243]
[1743342812526,0.0013374,82934.0,82933.0,0.89397443]
[1743342812732,0.0013374,82934.0,82933.0,0.44709175]
[1743342813573,0.0133944,82934.0,82933.0,0.4231]
[1743342813787,0.06726347,82934.0,82933.0,0.4231]
[1743342813987,0.0133944,82934.0,82933.0,0.4231]
[1743342814201,0.0133944,82934.0,82933.0,0.011]
[1743342814616,0.0123944,82934.0,82933.0,0.006]
[1743342814814,0.241158,82933.0,82920.0,0.02659985]
[1743342815034,0.012057,82933.0,82922.0,0.312059]
[1743342815242,0.2535504,82934.0,82922.0,0.312059]
[1743342815243,0.0003374,82934.0,82928.0,0.02363882]
[1743342815650,0.0003374,82934.0,82928.0,0.03569682]
[1743342816118,0.0003374,82934.0,82933.0,0.004]
[1743342816742,0.0003374,82934.0,82928.0,0.03569682]
[1743342817080,0.0003374,82934.0,82928.0,0.03969682]
[1743342817294,0.0003374,82934.0,82933.0,0.004]
[1743342817604,0.0003374,82934.0,82928.0,0.03569682]
[1743342817804,0.0003374,82934.0,82933.0,0.016057]
[1743342818013,0.0003374,82934.0,82933.0,0.004]
[1743342819571,0.0003374,82934.0,82928.0,0.14792365]
[1743342819818,0.01923062,82934.0,82928.0,0.14792365]
[1743342820183,0.01923062,82934.0,82928.0,0.02763882]
[1743342820638,0.01923062,82934.0,82933.0,0.004]
[1743342820885,0.01923062,82934.0,82928.0,0.02763882]
[1743342821341,0.01923062,82934.0,82928.0,0.03163882]
[1743342821571,0.01923062,82934.0,82928.0,0.02763882]
[1743342821786,0.01923062,82934.0,82930.0,0.012058]
[1743342822001,0.01923062,82934.0,82933.0,0.016057]
[1743342822828,0.01923062,82934.0,82933.0,0.261215]
[1743342823240,0.01923062,82934.0,82933.0,0.257215]
[1743342823420,0.01923062,82934.0,82933.0,0.253215]
[1743342823771,0.01923062,82934.0,82933.0,0.005]
[1743342824519,0.01923062,82934.0,82933.0,0.258215]
[1743342824787,0.01923062,82934.0,82933.0,0.262215]
[1743342825152,0.01923062,82934.0,82933.0,0.009]
[1743342826670,0.0003374,82934.0,82933.0,0.009]
[1743342827826,0.0003374,82934.0,82933.0,0.021057]
[1743342829667,0.01922941,82934.0,82933.0,0.012057]
[1743342829834,0.01922941,82934.0,82933.0,0.024057]
[1743342830187,0.01922941,82934.0,82933.0,0.15288268]
[1743342830403,0.01922941,82934.0,82933.0,0.52763621]
[1743342830578,0.01922941,82934.0,82933.0,0.53963621]
[1743342831780,0.01922941,82934.0,82933.0,0.53363621]
[1743342832182,0.01922941,82934.0,82933.0,0.45888268]
[1743342832664,0.01922941,82934.0,82933.0,0.45288268]
[1743342833183,0.01922941,82934.0,82933.0,0.45888268]
[1743342836632,0.0003374,82934.0,82933.0,0.45888268]
[1743342837181,0.0003374,82948.0,82947.0,0.253172]
[1743342837382,0.0003374,82948.0,82947.0,0.68799768]
[1743342837989,0.0003374,82948.0,82947.0,0.69686979]
[1743342838377,0.0003374,82948.0,82947.0,0.69701152]
[1743342839316,0.0003374,82948.0,82947.0,0.71670589]
[1743342839670,0.0003374,82948.0,82947.0,0.83699072]
[1743342840111,0.2535064,82948.0,82947.0,0.02870821]
[1743342840320,0.3850064,82948.0,82947.0,0.03370821]
[1743342840516,0.1318374,82948.0,82947.0,0.0248361]
[1743342841166,0.1318374,82948.0,82947.0,0.04889377]
[1743342841366,0.1318374,82948.0,82947.0,0.0341994]
[1743342842136,0.1318374,82948.0,82947.0,0.04919485]
[1743342842337,0.3850064,82948.0,82947.0,0.0341994]
[1743342842535,0.3850064,82948.0,82947.0,0.01014173]
[1743342842950,0.3900064,82948.0,82947.0,0.01014173]
[1743342843977,0.48458356,82948.0,82947.0,0.01014173]
[1743342844179,0.62986819,82948.0,82947.0,0.01014173]
[1743342844423,0.62986819,82948.0,82930.0,0.0001685]
[1743342844424,0.384722,82931.0,82930.0,0.0001685]
[1743342844559,0.389722,82931.0,82930.0,0.00027651]
[1743342845165,0.41984705,82931.0,82930.0,0.00027651]
[1743342845634,0.41484705,82931.0,82930.0,0.00627651]
[1743342845836,0.41984705,82931.0,82930.0,0.00627651]
[1743342846409,0.40095168,82931.0,82930.0,0.01227651]
[1743342846817,0.42595148,82931.0,82930.0,0.00627651]
[1743342847180,0.42095148,82931.0,82930.0,0.01227651]
[1743342847519,0.06052968,82931.0,82930.0,0.01227651]
[1743342847719,0.01122968,82931.0,82930.0,0.02433451]
[1743342847914,0.01122968,82931.0,82930.0,0.15916019]
[1743342848814,0.012056,82941.0,82931.0,0.26776285]
[1743342849036,0.012056,82941.0,82931.0,0.38804768]
[1743342849452,0.012056,82942.0,82931.0,0.38804768]
[1743342849453,0.01889257,82939.0,82934.0,0.012057]
[1743342850000,0.01889257,82939.0,82931.0,0.13482568]
[1743342850428,0.253222,82931.0,82930.0,0.00627651]
[1743342850632,0.012057,82933.0,82930.0,0.00027651]
[1743342851065,0.012057,82933.0,82931.0,0.003]
[1743342851382,0.012057,82933.0,82930.0,0.00027651]
[1743342851540,0.012057,82933.0,82930.0,0.00627651]
[1743342851735,0.012057,82933.0,82931.0,0.004]
[1743342852350,0.012057,82933.0,82930.0,0.00527651]
[1743342852618,0.012057,82933.0,82930.0,0.01127651]
[1743342853277,0.253219,82932.0,82930.0,0.00527651]
[1743342853474,0.253219,82932.0,82931.0,0.006]
[1743342853810,0.253219,82932.0,82931.0,0.011]
[1743342854163,0.253219,82932.0,82931.0,0.006]
[1743342854372,0.3291831,82932.0,82931.0,0.006]
[1743342854566,0.3783831,82932.0,82931.0,0.006]
[1743342854868,0.0492,82932.0,82930.0,0.00027651]
[1743342855080,0.0492,82932.0,82931.0,0.005]
[1743342855304,0.0492,82932.0,82930.0,0.00627651]
[1743342855764,0.0492,82932.0,82930.0,0.00027651]
[1743342855975,0.012057,82936.0,82930.0,0.00027651]
[1743342856718,0.012057,82934.0,82930.0,0.00527651]
[1743342857086,0.012057,82934.0,82931.0,0.005]
[1743342857297,0.253212,82934.0,82931.0,0.0001684]
[1743342857551,0.241161,82932.0,82931.0,0.0001684]
[1743342857945,0.012057,82933.0,82931.0,0.0001684]
[1743342858724,0.253209,82936.0,82931.0,0.0001684]
[1743342859105,0.012057,82934.0,82931.0,0.0051684]
[1743342859662,0.012057,82934.0,82931.0,0.0001684]
[1743342859850,0.253215,82933.0,82931.0,0.0001684]
[1743342860058,0.253215,82933.0,82931.0,0.0041684]
[1743342860410,0.253215,82933.0,82931.0,0.0081684]
[1743342860610,0.012058,82932.0,82931.0,0.0081684]
[1743342861018,0.012058,82932.0,82931.0,0.0041684]
[1743342861218,0.012058,82932.0,82931.0,0.0001684]
[1743342861419,0.012058,82932.0,82931.0,0.0051684]
[1743342861627,0.012058,82932.0,82931.0,0.0101684]
[1743342862027,0.012058,82932.0,82931.0,0.0051684]
[1743342863414,0.012058,82932.0,82931.0,0.0101684]
[1743342864825,0.253215,82933.0,82931.0,0.0101684]
[1743342865188,0.012058,82932.0,82931.0,0.0101684]
[1743342865953,0.012058,82932.0,82931.0,0.0051684]
[1743342866113,0.012058,82932.0,82931.0,0.0101684]
[1743342866534,0.012057,82934.0,82931.0,0.0101684]
[1743342867222,0.241158,82933.0,82931.0,0.0101684]
[1743342867366,0.241158,82933.0,82931.0,0.0051684]
[1743342867565,0.0492,82941.0,82936.0,0.012057]
[1743342867766,0.0003374,82948.0,82940.0,0.012056]
[1743342868525,0.0003374,82948.0,82943.0,0.241127]
[1743342868662,0.0003374,82948.0,82943.0,0.253183]
[1743342869475,0.01889074,82947.0,82943.0,0.253183]
[1743342869683,0.01889074,82947.0,82944.0,0.13234083]
[1743342869684,0.01922754,82947.0,82944.0,0.13234083]
[1743342870487,0.01922754,82947.0,82944.0,0.14131788]
[1743342870665,0.01922754,82947.0,82945.0,0.253179]
[1743342870866,0.01922754,82947.0,82944.0,0.14131788]
[1743342871129,0.01922754,82947.0,82946.0,0.02471705]
[1743342871290,0.27239954,82947.0,82946.0,0.02471705]
[1743342873533,0.27239954,82947.0,82946.0,0.02771705]
[1743342873737,0.28363503,82947.0,82946.0,0.02771705]
[1743342874249,0.03046303,82947.0,82946.0,0.02771705]
[1743342874451,0.03046303,82947.0,82946.0,0.03071705]
[1743342875428,0.03128254,82947.0,82946.0,0.03071705]
[1743342877476,0.0123918,82947.0,82946.0,0.03071705]
[1743342878458,0.0003368,82947.0,82946.0,0.03071705]
[1743342879574,0.2414538,82947.0,82946.0,0.03071705]
[1743342879776,0.2535088,82947.0,82946.0,0.03071705]
[1743342880397,0.27239986,82947.0,82946.0,0.03071705]
[1743342880607,0.35249986,82947.0,82946.0,0.03071705]
[1743342881223,0.36373291,82947.0,82946.0,0.03071705]
[1743342881785,0.36373291,82947.0,82946.0,0.03088545]
[1743342882514,0.35249986,82947.0,82946.0,0.03088545]
[1743342883432,0.44715521,82947.0,82946.0,0.0061684]
[1743342883635,0.51775501,82947.0,82946.0,0.0061684]
[1743342883836,0.42809966,82947.0,82946.0,0.0061684]
[1743342884454,0.42809966,82947.0,82946.0,0.0031684]
[1743342884872,0.42809966,82947.0,82946.0,0.0041684]
[1743342885076,0.42809966,82947.0,82946.0,0.0051684]
[1743342886935,0.4092086,82947.0,82946.0,0.0051684]
[1743342890242,0.42810128,82947.0,82946.0,0.0051684]
[1743342896904,0.4092086,82947.0,82946.0,0.0051684]
[1743342899741,0.42810125,82947.0,82946.0,0.0051684]
[1743342899969,0.52092749,82947.0,82946.0,0.0051684]
[1743342902973,0.70886608,82947.0,82946.0,4e-07]
[1743342903188,1.46048927,82947.0,82946.0,4e-07]
[1743342903415,1.46048927,82947.0,82931.0,0.0001684]
[1743342903416,0.383519,82932.0,82931.0,0.0001684]
[1743342903621,0.52880363,82932.0,82931.0,0.0001684]
[1743342904176,0.66798525,82932.0,82931.0,0.0001684]
[1743342904741,0.54770042,82932.0,82931.0,0.0021684]
[1743342905331,0.54770042,82932.0,82931.0,0.0051684]
[1743342906555,0.52880363,82932.0,82931.0,0.0001684]
[1743342906784,0.2832278,82929.0,82928.0,5e-07]
[1743342906992,1.11563746,82929.0,82928.0,5e-07]
[1743342907141,1.53193746,82929.0,82928.0,5e-07]
[1743342907341,1.56726065,82929.0,82928.0,5e-07]
[1743342908179,1.56726065,82929.0,82928.0,0.0020005]
[1743342908373,1.56726065,82929.0,82928.0,0.0010005]
[1743342908571,1.56726065,82929.0,82928.0,5e-07]
[1743342909622,1.58616073,82929.0,82928.0,5e-07]
[1743342910823,1.58616073,82929.0,82895.0,0.0001685]
[1743342910824,0.253329,82896.0,82895.0,0.0001685]
[1743342911669,0.27223122,82896.0,82895.0,0.0001685]
[1743342912056,0.27223122,82896.0,82895.0,0.00063909]
[1743342912247,0.27223122,82896.0,82895.0,0.00663909]
[1743342912719,0.27223122,82896.0,82895.0,0.00063909]
[1743342913073,0.27223122,82896.0,82895.0,0.00263909]
[1743342913860,0.27223122,82896.0,82895.0,0.00463909]
[1743342916610,0.253329,82896.0,82895.0,0.00463909]
[1743342917794,2.253329,82896.0,82895.0,0.00463909]
[1743342919629,2.0,82896.0,82895.0,0.00463909]
[1743342919834,2.01890156,82896.0,82895.0,0.00463909]
[1743342927501,2.0,82896.0,82895.0,0.24590809]
[1743342927636,2.0,82896.0,82895.0,0.25797109]
[1743342928100,2.0,82896.0,82895.0,0.01670209]
[1743342928722,2.0,82896.0,82895.0,0.25797109]
[1743342930197,2.0,82896.0,82895.0,0.25597109]
[1743342930405,2.0,82896.0,82895.0,0.25997109]
[1743342930608,2.0,82896.0,82895.0,0.25797109]
[1743342930834,2.01890043,82896.0,82895.0,0.25797109]
[1743342930976,2.01890043,82896.0,82895.0,0.26297109]
[1743342933277,2.01890043,82896.0,82895.0,0.39779677]
[1743342934644,2.01890043,82896.0,82895.0,0.87421885]
[1743342935251,2.00656436,82896.0,82895.0,0.87421885]
[1743342935515,1.93919014,82896.0,82895.0,0.87421885]
[1743342935699,1.8697221,82896.0,82895.0,0.86921885]
[1743342935869,1.85419942,82896.0,82895.0,0.86921885]
[1743342936485,1.23540212,82896.0,82895.0,1.28131885]
[1743342936893,1.23540212,82896.0,82895.0,1.27731885]
[1743342937434,1.23540212,82896.0,82895.0,1.28331885]
[1743342937776,1.23540212,82896.0,82895.0,1.28931885]
[1743342937974,1.23540212,82896.0,82895.0,1.28331885]
[1743342938198,1.01665622,82896.0,82895.0,1.28331885]
[1743342938402,0.000337,82928.0,82927.0,0.253233]
[1743342938643,0.000337,82928.0,82927.0,0.2809681]
[1743342939575,0.01923196,82928.0,82927.0,0.28110983]
[1743342942121,0.01923196,82928.0,82927.0,0.28210983]
[1743342942291,0.01923196,82928.0,82927.0,0.28110983]
[1743342942498,0.01923196,82928.0,82927.0,0.28310983]
[1743342942940,0.01923196,82928.0,82927.0,0.28110983]
[1743342944069,0.01923196,82928.0,82927.0,0.28310983]
[1743342944404,0.01923196,82928.0,82927.0,0.28610983]
[1743342944864,0.01923196,82928.0,82927.0,0.30045199]